[Event "Early-Titled-Tuesday-Blitz-January-30-2024"]
[Site "Chess.com"]
[Date "2024.01.30"]
[Round "5"]
[White "Byniolus"]
[Black "Crazy_girl99"]
[Result "1-0"]
[WhiteElo "2823"]
[BlackElo "2618"]
[TimeControl "180+1"]
[EndTime "8:58:09 PST"]
[Termination "Byniolus won on time"]

1. d4 {[%clk 0:03:00.9]} 1... Nf6 {[%clk 0:02:36.3]} 2. Nf3 {[%clk 0:03:00.7]}
2... e6 {[%clk 0:02:36.1]} 3. Bf4 {[%clk 0:03:01]} 3... d5 {[%clk 0:02:34.2]} 4.
e3 {[%clk 0:03:01.2]} 4... Bd6 {[%clk 0:02:34]} 5. Bg3 {[%clk 0:03:01.5]} 5...
O-O {[%clk 0:02:33.7]} 6. Nbd2 {[%clk 0:03:01.6]} 6... Ne4 {[%clk 0:02:31]} 7.
Nxe4 {[%clk 0:03:01.6]} 7... dxe4 {[%clk 0:02:30.8]} 8. Nd2 {[%clk 0:03:02.5]}
8... f5 {[%clk 0:02:30.4]} 9. c3 {[%clk 0:03:01.3]} 9... b6 {[%clk 0:02:27.1]}
10. Nc4 {[%clk 0:03:00.7]} 10... Bb7 {[%clk 0:02:24.7]} 11. Be2 {[%clk 0:02:59]}
11... Qe7 {[%clk 0:02:17.1]} 12. a4 {[%clk 0:02:55.2]} 12... Nd7 {[%clk
0:02:10.8]} 13. Nxd6 {[%clk 0:02:52.4]} 13... cxd6 {[%clk 0:02:10.5]} 14. O-O
{[%clk 0:02:41.3]} 14... e5 {[%clk 0:02:05.4]} 15. f4 {[%clk 0:01:36.8]} 15...
exf3 {[%clk 0:01:34.8]} 16. Bxf3 {[%clk 0:01:36.4]} 16... Bxf3 {[%clk 0:01:33]}
17. Qxf3 {[%clk 0:01:37.3]} 17... Qe6 {[%clk 0:01:24.9]} 18. a5 {[%clk
0:01:29.3]} 18... b5 {[%clk 0:01:17.8]} 19. a6 {[%clk 0:01:29.6]} 19... b4
{[%clk 0:01:14.3]} 20. cxb4 {[%clk 0:01:07]} 20... Rab8 {[%clk 0:01:13.1]} 21.
Rfc1 {[%clk 0:00:54.8]} 21... Rxb4 {[%clk 0:01:12.1]} 22. Rc7 {[%clk 0:00:54.6]}
22... exd4 {[%clk 0:01:01.1]} 23. exd4 {[%clk 0:00:52]} 23... f4 {[%clk
0:00:56.4]} 24. Bf2 {[%clk 0:00:44.6]} 24... Rxb2 {[%clk 0:00:54.6]} 25. Rxa7
{[%clk 0:00:32.9]} 25... d5 {[%clk 0:00:47.8]} 26. Re1 {[%clk 0:00:19.3]} 26...
Qf5 {[%clk 0:00:29.1]} 27. h3 {[%clk 0:00:14.6]} 27... Rf7 {[%clk 0:00:14.2]}
28. Rb7 {[%clk 0:00:10.6]} 28... Rxb7 {[%clk 0:00:08.2]} 29. axb7 {[%clk
0:00:11.5]} 29... Nb8 {[%clk 0:00:08]} 30. Re8+ {[%clk 0:00:03.9]} 30... Rf8
{[%clk 0:00:07.2]} 31. Qe2 {[%clk 0:00:02.5]} 31... Qf7 {[%clk 0:00:05.6]} 32.
Re7 {[%clk 0:00:02.2]} 32... Qf6 {[%clk 0:00:04.1]} 33. Qe1 {[%clk 0:00:02.1]}
33... h6 {[%clk 0:00:02.8]} 34. Bh4 {[%clk 0:00:02]} 34... Qc6 {[%clk 0:00:02]}
35. Kh2 {[%clk 0:00:01.9]} 35... f3 {[%clk 0:00:02.3]} 36. gxf3 {[%clk
0:00:01.7]} 36... Qc2+ {[%clk 0:00:02.2]} 37. Qe2 {[%clk 0:00:02]} 37... Qc6
{[%clk 0:00:02.4]} 38. Bg3 {[%clk 0:00:01.9]} 38... Na6 {[%clk 0:00:02.3]} 39.
Re8 {[%clk 0:00:01.6]} 39... Rxe8 {[%clk 0:00:01.8]} 40. Qa2 {[%clk 0:00:01.6]}
1-0

[Event "Early-Titled-Tuesday-Blitz-January-30-2024"]
[Site "Chess.com"]
[Date "2024.01.30"]
[Round "5"]
[White "pirulillo"]
[Black "RandomNoob04"]
[Result "0-1"]
[WhiteElo "2275"]
[BlackElo "2566"]
[TimeControl "180+1"]
[EndTime "8:58:09 PST"]
[Termination "RandomNoob04 won on time"]

1. e4 {[%clk 0:03:00.9]} 1... e5 {[%clk 0:03:00]} 2. Bc4 {[%clk 0:02:58.9]} 2...
Nc6 {[%clk 0:02:58.7]} 3. d3 {[%clk 0:02:58.8]} 3... Nf6 {[%clk 0:02:55.6]} 4.
Nc3 {[%clk 0:02:58.5]} 4... Bb4 {[%clk 0:02:54]} 5. Ne2 {[%clk 0:02:56.9]} 5...
d5 {[%clk 0:02:53.1]} 6. exd5 {[%clk 0:02:56.5]} 6... Nxd5 {[%clk 0:02:54]} 7.
O-O {[%clk 0:02:54.9]} 7... Nxc3 {[%clk 0:02:53.6]} 8. Nxc3 {[%clk 0:02:53.4]}
8... O-O {[%clk 0:02:52.3]} 9. Ne4 {[%clk 0:02:37.4]} 9... Be7 {[%clk
0:02:49.4]} 10. Qh5 {[%clk 0:02:26.6]} 10... g6 {[%clk 0:01:56.6]} 11. Qh6
{[%clk 0:02:21.4]} 11... Nd4 {[%clk 0:01:55.5]} 12. Ng5 {[%clk 0:02:04.6]} 12...
Bxg5 {[%clk 0:01:55.2]} 13. Bxg5 {[%clk 0:02:03.8]} 13... Qd6 {[%clk 0:01:56.1]}
14. Qh4 {[%clk 0:01:44.6]} 14... Nf5 {[%clk 0:01:43.2]} 15. Qe4 {[%clk
0:01:39.2]} 15... Rb8 {[%clk 0:01:25.2]} 16. Rae1 {[%clk 0:01:06.7]} 16... Re8
{[%clk 0:01:23.4]} 17. f4 {[%clk 0:00:59.7]} 17... Qc5+ {[%clk 0:01:20.4]} 18.
Kh1 {[%clk 0:00:58]} 18... Nd6 {[%clk 0:01:20.8]} 19. Qf3 {[%clk 0:00:31.7]}
19... e4 {[%clk 0:01:11.9]} 20. Qd1 {[%clk 0:00:20.5]} 20... Nxc4 {[%clk
0:01:06.9]} 21. dxc4 {[%clk 0:00:21.4]} 21... Qxc4 {[%clk 0:01:07.4]} 22. Bf6
{[%clk 0:00:20.9]} 22... e3 {[%clk 0:00:55.3]} 23. Re2 {[%clk 0:00:18.1]} 23...
Bg4 {[%clk 0:00:54.8]} 24. Rfe1 {[%clk 0:00:17.6]} 24... Bxe2 {[%clk 0:00:53.2]}
25. Rxe2 {[%clk 0:00:18.5]} 25... Qxf4 {[%clk 0:00:52.9]} 26. Bc3 {[%clk
0:00:17.9]} 26... Rbd8 {[%clk 0:00:52.6]} 27. Qe1 {[%clk 0:00:18.4]} 27... Rd5
{[%clk 0:00:47.1]} 28. h3 {[%clk 0:00:18.5]} 28... f6 {[%clk 0:00:38.1]} 29. Bd2
{[%clk 0:00:07.6]} 29... Rde5 {[%clk 0:00:35.4]} 30. Bc3 {[%clk 0:00:07.7]}
30... R5e6 {[%clk 0:00:35.8]} 31. Qd1 {[%clk 0:00:07.7]} 31... Rd6 {[%clk
0:00:34]} 32. Qe1 {[%clk 0:00:07.4]} 32... Red8 {[%clk 0:00:33.8]} 33. Rxe3
{[%clk 0:00:07]} 33... Rd1 {[%clk 0:00:33.6]} 34. Re8+ {[%clk 0:00:07.1]} 34...
Kg7 {[%clk 0:00:32.4]} 35. Rxd8 {[%clk 0:00:06.1]} 35... Rxe1+ {[%clk
0:00:27.5]} 36. Bxe1 {[%clk 0:00:07]} 36... Qc1 {[%clk 0:00:24.5]} 37. Re8
{[%clk 0:00:05.4]} 37... Kf7 {[%clk 0:00:24.9]} 38. Re2 {[%clk 0:00:04.5]} 38...
Qd1 {[%clk 0:00:25.4]} 39. Re3 {[%clk 0:00:04.2]} 39... Qxc2 {[%clk 0:00:26]}
40. Bc3 {[%clk 0:00:03.4]} 40... b5 {[%clk 0:00:17.9]} 41. a3 {[%clk 0:00:03.2]}
41... c5 {[%clk 0:00:17.7]} 42. Rf3 {[%clk 0:00:03.3]} 42... f5 {[%clk
0:00:18.3]} 43. Re3 {[%clk 0:00:02.3]} 43... a5 {[%clk 0:00:18]} 44. Bxa5 {[%clk
0:00:01.4]} 44... Qxb2 {[%clk 0:00:18.5]} 0-1

[Event "Early-Titled-Tuesday-Blitz-January-30-2024"]
[Site "Chess.com"]
[Date "2024.01.30"]
[Round "5"]
[White "LornerAcosta"]
[Black "tolia123"]
[Result "1/2-1/2"]
[WhiteElo "2376"]
[BlackElo "2137"]
[TimeControl "180+1"]
[EndTime "8:58:09 PST"]
[Termination "Game drawn by repetition"]

1. Nf3 {[%clk 0:03:00.9]} 1... Nf6 {[%clk 0:02:58.6]} 2. d4 {[%clk 0:02:56.6]}
2... g6 {[%clk 0:02:58.3]} 3. c3 {[%clk 0:02:56.6]} 3... Bg7 {[%clk 0:02:58.1]}
4. Bf4 {[%clk 0:02:57.2]} 4... d6 {[%clk 0:02:58]} 5. Nbd2 {[%clk 0:02:56.4]}
5... O-O {[%clk 0:02:58.5]} 6. e4 {[%clk 0:02:56.1]} 6... c5 {[%clk 0:02:57.6]}
7. dxc5 {[%clk 0:02:55.9]} 7... dxc5 {[%clk 0:02:57]} 8. h3 {[%clk 0:02:56.6]}
8... Nc6 {[%clk 0:02:56.2]} 9. Qc2 {[%clk 0:02:55.5]} 9... b6 {[%clk 0:02:55.3]}
10. Be2 {[%clk 0:02:55.2]} 10... Bb7 {[%clk 0:02:55.5]} 11. O-O {[%clk 0:02:55]}
11... Rc8 {[%clk 0:02:53.7]} 12. Rad1 {[%clk 0:02:53]} 12... Qe8 {[%clk
0:02:43.1]} 13. Rfe1 {[%clk 0:02:41.7]} 13... a6 {[%clk 0:02:42.6]} 14. a4
{[%clk 0:02:35.2]} 14... Na5 {[%clk 0:02:31.5]} 15. e5 {[%clk 0:02:23.7]} 15...
Nd5 {[%clk 0:02:29.2]} 16. Bg3 {[%clk 0:02:23.4]} 16... c4 {[%clk 0:02:17.2]}
17. e6 {[%clk 0:02:14.2]} 17... fxe6 {[%clk 0:02:09.4]} 18. Ng5 {[%clk
0:02:08.7]} 18... Bc6 {[%clk 0:01:50.2]} 19. Ra1 {[%clk 0:02:05.7]} 19... Bd7
{[%clk 0:01:46.6]} 20. Bg4 {[%clk 0:01:57.9]} 20... e5 {[%clk 0:01:32.1]} 21.
Ne6 {[%clk 0:01:35.3]} 21... Rf7 {[%clk 0:01:24.5]} 22. Bxe5 {[%clk 0:01:28.6]}
22... Bxe5 {[%clk 0:01:22.1]} 23. Rxe5 {[%clk 0:01:28.1]} 23... Nc7 {[%clk
0:01:12]} 24. Ng5 {[%clk 0:01:10.2]} 24... Rf6 {[%clk 0:01:00.1]} 25. Bxd7
{[%clk 0:00:53.4]} 25... Qxd7 {[%clk 0:01:01]} 26. Rae1 {[%clk 0:00:53.2]} 26...
Re8 {[%clk 0:00:52.7]} 27. Ndf3 {[%clk 0:00:33.8]} 27... Rf5 {[%clk 0:00:44.8]}
28. h4 {[%clk 0:00:20.2]} 28... Rxe5 {[%clk 0:00:37.7]} 29. Rxe5 {[%clk
0:00:16.5]} 29... Nb3 {[%clk 0:00:31.4]} 30. h5 {[%clk 0:00:14.2]} 30... Qd3
{[%clk 0:00:31.4]} 31. Qe2 {[%clk 0:00:11.7]} 31... Qxe2 {[%clk 0:00:27]} 32.
Rxe2 {[%clk 0:00:12.6]} 32... gxh5 {[%clk 0:00:24.3]} 33. Ne5 {[%clk 0:00:09.9]}
33... b5 {[%clk 0:00:19.2]} 34. axb5 {[%clk 0:00:09.6]} 34... axb5 {[%clk
0:00:20.1]} 35. Re3 {[%clk 0:00:09.8]} 35... Nd5 {[%clk 0:00:20]} 36. Rh3 {[%clk
0:00:09.2]} 36... Nf4 {[%clk 0:00:19.8]} 37. Rf3 {[%clk 0:00:07.9]} 37... Rf8
{[%clk 0:00:17.8]} 38. Kh2 {[%clk 0:00:07.1]} 38... Ng6 {[%clk 0:00:16.9]} 39.
Rxf8+ {[%clk 0:00:04.9]} 39... Kxf8 {[%clk 0:00:17]} 40. Nxh7+ {[%clk
0:00:05.3]} 40... Kg7 {[%clk 0:00:16.8]} 41. Nxg6 {[%clk 0:00:05.7]} 41... Kxg6
{[%clk 0:00:15.9]} 42. Nf8+ {[%clk 0:00:06]} 42... Kf7 {[%clk 0:00:15.4]} 43.
Nd7 {[%clk 0:00:06.6]} 43... Ke6 {[%clk 0:00:15.1]} 44. Nf8+ {[%clk 0:00:07.1]}
44... Kf7 {[%clk 0:00:15.2]} 45. Nd7 {[%clk 0:00:06.2]} 45... Ke6 {[%clk
0:00:15.4]} 46. Nf8+ {[%clk 0:00:04.1]} 46... Kf7 {[%clk 0:00:13.2]} 1/2-1/2

[Event "Early-Titled-Tuesday-Blitz-January-30-2024"]
[Site "Chess.com"]
[Date "2024.01.30"]
[Round "5"]
[White "Karina_Ivanova"]
[Black "Kotlyar_K"]
[Result "0-1"]
[WhiteElo "2284"]
[BlackElo "2482"]
[TimeControl "180+1"]
[EndTime "8:58:10 PST"]
[Termination "Kotlyar_K won by resignation"]

1. d4 {[%clk 0:02:59.4]} 1... Nf6 {[%clk 0:02:56.5]} 2. Nf3 {[%clk 0:02:54.8]}
2... g6 {[%clk 0:02:56.4]} 3. c4 {[%clk 0:02:53.2]} 3... Bg7 {[%clk 0:02:56.6]}
4. g3 {[%clk 0:02:52.5]} 4... c6 {[%clk 0:02:56.1]} 5. Bg2 {[%clk 0:02:51.4]}
5... O-O {[%clk 0:02:56.1]} 6. O-O {[%clk 0:02:50.8]} 6... d5 {[%clk 0:02:56.7]}
7. b3 {[%clk 0:02:48.8]} 7... Ne4 {[%clk 0:02:53.9]} 8. Bb2 {[%clk 0:02:47.4]}
8... Bf5 {[%clk 0:02:53.1]} 9. Nc3 {[%clk 0:02:46.3]} 9... dxc4 {[%clk
0:02:37.9]} 10. bxc4 {[%clk 0:02:43]} 10... Qb6 {[%clk 0:02:37.1]} 11. Qb3
{[%clk 0:02:30.1]} 11... Nd7 {[%clk 0:02:10]} 12. Rfd1 {[%clk 0:02:09.9]} 12...
Ndf6 {[%clk 0:02:00.3]} 13. Rac1 {[%clk 0:02:01.3]} 13... Nxc3 {[%clk
0:01:53.9]} 14. Bxc3 {[%clk 0:01:59.8]} 14... Ne4 {[%clk 0:01:54.1]} 15. Ba1
{[%clk 0:01:53.6]} 15... Rfd8 {[%clk 0:01:41.7]} 16. e3 {[%clk 0:01:50.4]} 16...
Qc7 {[%clk 0:01:15.9]} 17. Nh4 {[%clk 0:01:47.7]} 17... e6 {[%clk 0:01:10.1]}
18. Nxf5 {[%clk 0:01:46.9]} 18... exf5 {[%clk 0:01:11]} 19. Bb2 {[%clk
0:01:36.2]} 19... Rab8 {[%clk 0:00:54.9]} 20. a4 {[%clk 0:01:34]} 20... Qd7
{[%clk 0:00:52.7]} 21. c5 {[%clk 0:01:13.7]} 21... b5 {[%clk 0:00:44.8]} 22.
cxb6 {[%clk 0:01:11.6]} 22... axb6 {[%clk 0:00:45.7]} 23. Qc2 {[%clk 0:01:08.5]}
23... Rbc8 {[%clk 0:00:37.6]} 24. Bxe4 {[%clk 0:01:06.9]} 24... fxe4 {[%clk
0:00:38.5]} 25. Qxe4 {[%clk 0:01:06.9]} 25... Re8 {[%clk 0:00:38.5]} 26. Qc2
{[%clk 0:01:05.6]} 26... Qa7 {[%clk 0:00:37.9]} 27. Qb3 {[%clk 0:01:01.9]} 27...
c5 {[%clk 0:00:25.6]} 28. dxc5 {[%clk 0:01:01]} 28... bxc5 {[%clk 0:00:23.7]}
29. Bxg7 {[%clk 0:00:59.8]} 29... Kxg7 {[%clk 0:00:24]} 30. Rc4 {[%clk
0:00:54.6]} 30... Re6 {[%clk 0:00:18]} 31. Rdc1 {[%clk 0:00:53.8]} 31... Rec6
{[%clk 0:00:18.1]} 32. R1c3 {[%clk 0:00:51.4]} 32... Kg8 {[%clk 0:00:18.4]} 33.
Qc2 {[%clk 0:00:51.1]} 33... Qa5 {[%clk 0:00:18.6]} 34. h4 {[%clk 0:00:49.4]}
34... h5 {[%clk 0:00:18.3]} 35. Kg2 {[%clk 0:00:44.3]} 35... Kg7 {[%clk
0:00:17.5]} 36. Qb2 {[%clk 0:00:40.7]} 36... Kg8 {[%clk 0:00:17.9]} 37. Qb5
{[%clk 0:00:40.5]} 37... Qa7 {[%clk 0:00:17.8]} 38. a5 {[%clk 0:00:38.5]} 38...
R6c7 {[%clk 0:00:17.8]} 39. a6 {[%clk 0:00:37.2]} 39... Rb8 {[%clk 0:00:18.1]}
40. Qa5 {[%clk 0:00:35.6]} 40... Rbc8 {[%clk 0:00:18.4]} 41. e4 {[%clk
0:00:29.6]} 41... Rc6 {[%clk 0:00:18.2]} 42. Qb5 {[%clk 0:00:27.6]} 42... Rb6
{[%clk 0:00:17]} 43. Qa5 {[%clk 0:00:25.7]} 43... Rbc6 {[%clk 0:00:16.7]} 44. e5
{[%clk 0:00:21.8]} 44... Rxa6 {[%clk 0:00:16.6]} 45. Qb5 {[%clk 0:00:19.2]}
45... Qa8+ {[%clk 0:00:17]} 46. Kh2 {[%clk 0:00:18]} 46... Ra1 {[%clk
0:00:17.7]} 0-1

[Event "Early-Titled-Tuesday-Blitz-January-30-2024"]
[Site "Chess.com"]
[Date "2024.01.30"]
[Round "5"]
[White "NovozhilovSemen"]
[Black "Al_Shima"]
[Result "1-0"]
[WhiteElo "2659"]
[BlackElo "2342"]
[TimeControl "180+1"]
[EndTime "8:58:11 PST"]
[Termination "NovozhilovSemen won by resignation"]

1. d4 {[%clk 0:03:00.9]} 1... Nf6 {[%clk 0:02:57.5]} 2. Nf3 {[%clk 0:02:58.4]}
2... e6 {[%clk 0:02:57]} 3. e3 {[%clk 0:02:57.9]} 3... b6 {[%clk 0:02:55.2]} 4.
Bd3 {[%clk 0:02:57.9]} 4... Bb7 {[%clk 0:02:55.6]} 5. O-O {[%clk 0:02:58]} 5...
c5 {[%clk 0:02:55.9]} 6. c4 {[%clk 0:02:58.2]} 6... Be7 {[%clk 0:02:48.2]} 7.
Nc3 {[%clk 0:02:57.7]} 7... cxd4 {[%clk 0:02:46.9]} 8. exd4 {[%clk 0:02:58.6]}
8... O-O {[%clk 0:02:46.9]} 9. d5 {[%clk 0:02:57.5]} 9... d6 {[%clk 0:02:42.2]}
10. Nd4 {[%clk 0:02:40.4]} 10... e5 {[%clk 0:02:17.3]} 11. Nf5 {[%clk
0:02:39.9]} 11... g6 {[%clk 0:01:56.2]} 12. Nxe7+ {[%clk 0:02:36.4]} 12... Qxe7
{[%clk 0:01:57.1]} 13. f4 {[%clk 0:02:36.5]} 13... Nbd7 {[%clk 0:00:56.5]} 14.
Re1 {[%clk 0:02:30.7]} 14... Rfe8 {[%clk 0:00:52.5]} 15. Bf1 {[%clk 0:02:22.1]}
15... Rac8 {[%clk 0:00:46.3]} 16. fxe5 {[%clk 0:02:21.2]} 16... dxe5 {[%clk
0:00:43.6]} 17. Bg5 {[%clk 0:02:17]} 17... Qc5+ {[%clk 0:00:37.3]} 18. Kh1
{[%clk 0:02:15.4]} 18... Kg7 {[%clk 0:00:30.9]} 19. a3 {[%clk 0:02:09.1]} 19...
h6 {[%clk 0:00:30.5]} 20. Be3 {[%clk 0:02:08.2]} 20... Qf8 {[%clk 0:00:20.9]}
21. Qd2 {[%clk 0:02:06.2]} 21... Ng4 {[%clk 0:00:13.9]} 22. Bg1 {[%clk
0:02:00.4]} 22... f5 {[%clk 0:00:14.4]} 23. Nb5 {[%clk 0:01:53.2]} 23... a6
{[%clk 0:00:11.1]} 24. Na7 {[%clk 0:01:53.2]} 24... Ra8 {[%clk 0:00:06.6]} 25.
Nc6 {[%clk 0:01:53.3]} 25... Qd6 {[%clk 0:00:06.4]} 26. Rad1 {[%clk 0:01:49.7]}
26... Ngf6 {[%clk 0:00:05.4]} 27. Nb4 {[%clk 0:01:41.2]} 27... Nc5 {[%clk
0:00:05.5]} 28. Nc2 {[%clk 0:01:37.5]} 28... Rad8 {[%clk 0:00:05.1]} 29. b4
{[%clk 0:01:36.3]} 29... Nce4 {[%clk 0:00:04.9]} 30. Qd3 {[%clk 0:01:36.7]}
30... a5 {[%clk 0:00:04.9]} 31. Qe3 {[%clk 0:01:22.7]} 31... Rc8 {[%clk
0:00:04.6]} 32. Qxb6 {[%clk 0:01:21.5]} 32... Qxb6 {[%clk 0:00:04.4]} 33. Bxb6
{[%clk 0:01:22.4]} 33... axb4 {[%clk 0:00:04.9]} 34. axb4 {[%clk 0:01:23]} 34...
Nd6 {[%clk 0:00:03.1]} 35. Bc5 {[%clk 0:01:18.3]} 35... Nde4 {[%clk 0:00:02.5]}
36. Bg1 {[%clk 0:01:16.7]} 36... Ba6 {[%clk 0:00:02.7]} 37. c5 {[%clk
0:01:15.2]} 37... Bxf1 {[%clk 0:00:02.3]} 38. Rxf1 {[%clk 0:01:16.1]} 38... Red8
{[%clk 0:00:02]} 39. d6 {[%clk 0:01:15.8]} 39... Nc3 {[%clk 0:00:02]} 40. Rd3
{[%clk 0:01:15]} 40... Ncd5 {[%clk 0:00:02.4]} 41. Rfd1 {[%clk 0:01:13.1]} 41...
Nf4 {[%clk 0:00:02.7]} 42. R3d2 {[%clk 0:01:13.3]} 42... e4 {[%clk 0:00:02.5]}
43. b5 {[%clk 0:01:13.8]} 43... N6d5 {[%clk 0:00:02.2]} 44. Bd4+ {[%clk
0:01:13.4]} 44... Kf7 {[%clk 0:00:02.3]} 45. Ne3 {[%clk 0:01:14.3]} 45... Nxe3
{[%clk 0:00:02.4]} 46. Bxe3 {[%clk 0:01:15.2]} 46... Ne6 {[%clk 0:00:03]} 47. c6
{[%clk 0:01:14.9]} 47... f4 {[%clk 0:00:03.5]} 48. Rf1 {[%clk 0:01:15.1]} 48...
g5 {[%clk 0:00:03.2]} 49. d7 {[%clk 0:01:15.7]} 49... Rb8 {[%clk 0:00:02.6]} 50.
b6 {[%clk 0:01:16]} 50... Ke7 {[%clk 0:00:01.5]} 51. c7 {[%clk 0:01:15.6]} 51...
fxe3 {[%clk 0:00:01.9]} 52. cxb8=Q {[%clk 0:01:15.9]} 52... Rxb8 {[%clk
0:00:02.8]} 53. Re2 {[%clk 0:01:16.4]} 53... Rxb6 {[%clk 0:00:03]} 54. Rxe3
{[%clk 0:01:16.7]} 54... Rb4 {[%clk 0:00:01.9]} 55. Rd1 {[%clk 0:01:14.7]} 55...
Rb7 {[%clk 0:00:01.3]} 56. Rxe4 {[%clk 0:01:14.8]} 56... Rxd7 {[%clk 0:00:01.9]}
57. Rde1 {[%clk 0:01:14.5]} 57... Rd6 {[%clk 0:00:02.4]} 58. Rf1 {[%clk
0:01:14.4]} 58... Rd5 {[%clk 0:00:02.1]} 59. g3 {[%clk 0:01:14.3]} 59... Rd6
{[%clk 0:00:02.5]} 60. Kg2 {[%clk 0:01:14.5]} 60... Rd2+ {[%clk 0:00:02.6]} 61.
Kh3 {[%clk 0:01:14.6]} 61... Rd5 {[%clk 0:00:02.9]} 62. Rfe1 {[%clk 0:01:14.7]}
62... Rd6 {[%clk 0:00:03.3]} 63. Kg4 {[%clk 0:01:15.2]} 63... Kf6 {[%clk
0:00:03.9]} 64. Rxe6+ {[%clk 0:01:08.3]} 64... Rxe6 {[%clk 0:00:04.8]} 65. Rxe6+
{[%clk 0:01:09]} 65... Kxe6 {[%clk 0:00:05.7]} 66. Kh5 {[%clk 0:01:09.9]} 66...
Kf5 {[%clk 0:00:01.6]} 67. Kxh6 {[%clk 0:01:10.8]} 67... Kg4 {[%clk 0:00:02.5]}
68. Kg6 {[%clk 0:01:10.7]} 68... Kh3 {[%clk 0:00:03.4]} 69. Kxg5 {[%clk
0:01:11.6]} 69... Kxh2 {[%clk 0:00:04.3]} 70. g4 {[%clk 0:01:12.1]} 70... Kg3
{[%clk 0:00:05.2]} 1-0

[Event "Early-Titled-Tuesday-Blitz-January-30-2024"]
[Site "Chess.com"]
[Date "2024.01.30"]
[Round "5"]
[White "Klavdia_Nik"]
[Black "SamCopeland"]
[Result "1-0"]
[WhiteElo "2143"]
[BlackElo "2374"]
[TimeControl "180+1"]
[EndTime "8:58:11 PST"]
[Termination "Klavdia_Nik won by resignation"]

1. Nf3 {[%clk 0:03:00.1]} 1... d5 {[%clk 0:02:53.8]} 2. c4 {[%clk 0:02:54.2]}
2... c6 {[%clk 0:02:53.3]} 3. b3 {[%clk 0:02:53.5]} 3... Nf6 {[%clk 0:02:51.2]}
4. Bb2 {[%clk 0:02:53.5]} 4... Bf5 {[%clk 0:02:50.8]} 5. g3 {[%clk 0:02:53.5]}
5... Nbd7 {[%clk 0:02:48.2]} 6. Bg2 {[%clk 0:02:50.9]} 6... Rc8 {[%clk
0:02:45.5]} 7. O-O {[%clk 0:02:50.5]} 7... Qc7 {[%clk 0:02:41.8]} 8. d3 {[%clk
0:02:48.3]} 8... e5 {[%clk 0:02:41]} 9. Nh4 {[%clk 0:02:44.2]} 9... Be6 {[%clk
0:02:40]} 10. e4 {[%clk 0:02:43.1]} 10... Bc5 {[%clk 0:02:35.3]} 11. Nf5 {[%clk
0:02:30.9]} 11... Bxf5 {[%clk 0:02:32]} 12. exf5 {[%clk 0:02:31.8]} 12... O-O
{[%clk 0:02:31.7]} 13. Nd2 {[%clk 0:02:21.8]} 13... Rfe8 {[%clk 0:02:30.9]} 14.
a3 {[%clk 0:02:15.6]} 14... e4 {[%clk 0:02:29.6]} 15. dxe4 {[%clk 0:02:04.7]}
15... dxe4 {[%clk 0:02:28.3]} 16. b4 {[%clk 0:01:57.8]} 16... Bf8 {[%clk
0:02:25.7]} 17. Re1 {[%clk 0:01:53.9]} 17... Rcd8 {[%clk 0:02:17.5]} 18. Qc2
{[%clk 0:01:52]} 18... a5 {[%clk 0:02:02.4]} 19. c5 {[%clk 0:01:45.8]} 19...
axb4 {[%clk 0:01:54.8]} 20. axb4 {[%clk 0:01:45.2]} 20... b6 {[%clk 0:01:54.3]}
21. Nxe4 {[%clk 0:01:23.2]} 21... Nxe4 {[%clk 0:01:51.9]} 22. Bxe4 {[%clk
0:01:24.1]} 22... bxc5 {[%clk 0:01:50.6]} 23. f6 {[%clk 0:01:16.4]} 23... g6
{[%clk 0:01:20]} 24. bxc5 {[%clk 0:01:14.8]} 24... Nxc5 {[%clk 0:01:16.2]} 25.
Bf3 {[%clk 0:01:11.2]} 25... Rxe1+ {[%clk 0:01:11.5]} 26. Rxe1 {[%clk
0:01:11.6]} 26... Nd3 {[%clk 0:01:10.6]} 27. Rd1 {[%clk 0:00:51.8]} 27... Nxb2
{[%clk 0:00:33.3]} 28. Rxd8 {[%clk 0:00:51.1]} 28... Qxd8 {[%clk 0:00:34.2]} 29.
Qxb2 {[%clk 0:00:50.9]} 29... c5 {[%clk 0:00:27.1]} 30. Kg2 {[%clk 0:00:45.4]}
30... Qd4 {[%clk 0:00:23.3]} 31. Qxd4 {[%clk 0:00:40.8]} 31... cxd4 {[%clk
0:00:24.2]} 32. Be4 {[%clk 0:00:31.1]} 32... Bd6 {[%clk 0:00:20.3]} 33. g4
{[%clk 0:00:25.4]} 33... g5 {[%clk 0:00:17.3]} 34. h3 {[%clk 0:00:21.6]} 34...
Be5 {[%clk 0:00:16.3]} 35. Kf3 {[%clk 0:00:22.5]} 35... Bxf6 {[%clk 0:00:16.2]}
36. Bf5 {[%clk 0:00:20.7]} 36... Kf8 {[%clk 0:00:15.1]} 37. Ke4 {[%clk
0:00:20.9]} 37... Ke7 {[%clk 0:00:14.9]} 38. Bxh7 {[%clk 0:00:21]} 38... Bg7
{[%clk 0:00:07.1]} 39. f4 {[%clk 0:00:19.3]} 39... gxf4 {[%clk 0:00:06.6]} 40.
Kxf4 {[%clk 0:00:20.2]} 40... Kd6 {[%clk 0:00:05.3]} 41. Bd3 {[%clk 0:00:15.8]}
41... Be5+ {[%clk 0:00:05.1]} 42. Ke4 {[%clk 0:00:15.7]} 42... Bg3 {[%clk
0:00:04.2]} 43. Kxd4 {[%clk 0:00:14.8]} 43... Ke6 {[%clk 0:00:04.7]} 44. Ke4
{[%clk 0:00:15.1]} 44... Kf6 {[%clk 0:00:05.1]} 45. Kf3 {[%clk 0:00:14.6]} 45...
Bh4 {[%clk 0:00:05.6]} 46. Kf4 {[%clk 0:00:14.1]} 46... Bg5+ {[%clk 0:00:05.6]}
47. Kg3 {[%clk 0:00:14.4]} 47... Bh4+ {[%clk 0:00:06.5]} 48. Kxh4 {[%clk
0:00:14.3]} 1-0